bitfinex/quotes_ETHUSD_20250725
["timestamp","ask_amount","ask_price","bid_price","bid_amount"]
[1753468502869,34.55585635,3650.4,3650.3,1e-08]
[1753468507306,34.99725635,3650.4,3650.3,1e-08]
[1753468511322,34.55585635,3650.4,3650.3,1e-08]
[1753468513999,34.99725635,3650.4,3650.3,1e-08]
[1753468514197,7.93357591,3650.2,3650.1,1e-08]
[1753468514523,15.09069779,3650.2,3650.1,1e-08]
[1753468515819,22.15069779,3650.2,3650.1,1e-08]
[1753468516022,22.40741695,3650.2,3650.1,1e-08]
[1753468519618,22.84881695,3650.2,3650.1,1e-08]
[1753468520687,23.33791695,3650.2,3650.1,1e-08]
[1753468521022,22.92748099,3650.2,3650.1,1e-08]
[1753468521221,23.33854819,3650.2,3650.1,1e-08]
[1753468521622,7.93365096,3650.1,3650.0,1e-08]
[1753468521829,24.52964523,3650.1,3650.0,1e-08]
[1753468522613,14.24513044,3649.6,3649.5,0.001]
[1753468522923,19.02899764,3649.6,3649.5,0.001]
[1753468523326,26.08899764,3649.6,3649.5,0.001]
[1753468523533,28.23061138,3649.6,3649.5,0.001]
[1753468524431,17.88836042,3649.6,3649.5,0.001]
[1753468524635,22.12436042,3649.6,3649.5,0.9252]
[1753468524923,22.12436042,3649.6,3649.5,0.4577]
[1753468525100,22.12436042,3649.6,3649.5,0.001]
[1753468525307,22.57726042,3649.6,3649.5,0.001]
[1753468525504,4.93417646,3649.4,3649.3,0.001]
[1753468525834,19.02795194,3649.4,3649.3,0.001]
[1753468526428,19.02795194,3649.4,3649.3,0.4577]
[1753468526830,19.02795194,3649.4,3649.3,0.001]
[1753468527026,8.4818478,3649.4,3649.3,0.001]
[1753468527232,21.13948518,3649.4,3649.3,0.9252]
[1753468529149,16.90448518,3649.4,3649.3,0.9252]
[1753468529453,8.8758976,3649.4,3649.3,1.6932]
[1753468529655,11.8758976,3649.4,3649.3,1.6932]
[1753468530137,4.235,3649.4,3649.3,0.9252]
[1753468530637,12.4275683,3649.4,3649.3,1.757]
[1753468530842,20.03277244,3649.4,3649.3,1.2895]
[1753468531007,20.03277244,3649.4,3649.3,1.757]
[1753468531209,18.73867244,3649.4,3649.3,1.757]
[1753468531843,12.4275683,3649.4,3649.3,1.757]
[1753468532341,7.234,3649.4,3649.3,1.757]
[1753468532638,7.234,3649.4,3649.3,1.8938]
[1753468534305,3.0,3649.4,3649.3,1.8938]
[1753468534506,1.646,3649.5,3649.3,1.8938]
[1753468534507,1.646,3649.9,3649.5,2.74010138]
[1753468534738,9.32048943,3650.4,3649.8,0.7965]
[1753468534739,2.05621662,3650.3,3649.8,0.7965]
[1753468534945,0.25638539,3650.3,3650.0,2.73972602]
[1753468535143,4.234,3650.2,3650.1,0.7965]
[1753468535446,4.234,3650.2,3650.1,4.46028518]
[1753468535742,4.234,3650.2,3650.1,4.59708518]
[1753468536236,4.234,3650.2,3650.1,4.59715096]
[1753468536442,4.234,3650.2,3650.1,1.8575]
[1753468537243,4.234,3650.2,3650.1,4.59715096]
[1753468537853,4.234,3650.2,3650.1,5.33084388]
[1753468538545,0.002,3650.4,3650.2,0.7721]
[1753468538733,0.002,3650.4,3650.3,3.49140086]
[1753468538940,4.235,3650.4,3650.3,3.62820086]
[1753468539125,0.002,3650.4,3650.3,4.55240086]
[1753468539330,4.235,3650.4,3650.3,5.35497173]
[1753468539744,4.235,3650.4,3650.3,2.61547087]
[1753468539951,4.235,3650.4,3650.3,1.8129]
[1753468542327,4.235,3650.4,3650.3,1.3454]
[1753468543537,4.235,3650.4,3650.3,1.8129]
[1753468544435,0.002,3650.4,3650.3,1.8129]
[1753468544622,4.233,3650.4,3650.3,2.26816169]
[1753468545027,4.233,3650.4,3650.3,1.8129]
[1753468545474,5.879,3650.4,3650.3,1.8129]
[1753468545775,0.002,3650.4,3650.3,1.8129]
[1753468545954,0.002,3650.4,3650.3,4.55240086]
[1753468546970,0.002,3650.4,3650.3,4.57979586]
[1753468547174,0.002,3650.4,3650.3,5.94285061]
[1753468547471,0.002,3650.4,3650.3,5.91545561]
[1753468548476,0.002,3651.0,3650.9,2.73905064]
[1753468548641,0.002,3651.0,3650.9,3.54535064]
[1753468548960,0.002,3651.0,3650.9,4.63374114]
[1753468549167,0.002,3651.0,3650.9,6.00213927]
[1753468549474,0.002,3651.0,3650.9,5.97474877]
[1753468551552,0.002,3651.0,3650.9,3.23569813]
[1753468551952,0.002,3651.0,3650.9,5.97474877]
[1753468553658,0.002,3651.0,3650.9,3.23569813]
[1753468554647,0.002,3651.0,3650.9,1.8673]
[1753468556075,0.002,3651.0,3650.9,0.9431]
[1753468558759,0.002,3651.0,3650.9,1.4171]
[1753468559869,0.002,3651.0,3650.9,0.9431]
[1753468560094,0.002,3651.0,3650.9,1.8468]
[1753468560302,0.002,3651.0,3650.9,5.34576021]
[1753468562401,0.002,3651.0,3650.9,4.88866971]
[1753468562591,0.002,3651.0,3650.9,5.31836971]
[1753468564003,0.002,3651.0,3650.9,2.57931907]
[1753468565028,1.646,3650.6,3649.3,0.001]
[1753468565169,2.73978317,3650.0,3649.3,2.74122945]
[1753468565581,2.73942581,3650.4,3649.4,2.74017646]
[1753468565780,0.9144,3649.9,3649.4,2.74017646]
[1753468565998,0.9144,3649.8,3649.4,2.74017646]
[1753468566203,0.4668,3649.8,3649.4,3.84335558]
[1753468566420,0.4668,3649.8,3649.5,2.74009431]
[1753468566421,0.4476,3649.7,3649.5,2.74009431]
[1753468566799,0.4476,3649.7,3649.4,3.84333669]
[1753468567005,0.4476,3649.7,3649.4,1.10317912]
[1753468567234,0.4476,3649.7,3649.4,3.8433462]
[1753468567822,0.4476,3649.7,3649.4,1.10317912]
[1753468569008,0.4476,3649.7,3649.4,3.84335411]
[1753468569931,0.4476,3649.7,3649.4,1.10317912]
[1753468570637,0.4476,3649.7,3649.4,3.84334452]
[1753468570929,0.7878,3650.5,3649.5,0.38443445]
[1753468571100,4.226,3650.7,3649.9,2.73973011]
[1753468571300,2.73932306,3650.6,3650.0,0.9037]
[1753468571502,0.002,3651.0,3650.1,1.6837965]
[1753468571835,0.002,3651.0,3650.9,2.73905064]
[1753468572029,0.002,3651.0,3650.9,3.49175064]
[1753468572191,0.002,3651.0,3650.9,4.14222993]
[1753468572390,0.002,3651.0,3650.9,5.04592993]
[1753468574677,0.002,3651.0,3650.9,0.7527]
[1753468574965,0.002,3651.0,3650.9,3.34985064]
[1753468575117,0.002,3651.0,3650.9,4.55205064]
[1753468575316,0.002,3651.0,3650.9,8.77805064]
[1753468581181,0.002,3651.2,3651.1,6.5197006]
[1753468581481,1e-08,3651.2,3651.1,13.10674237]
[1753468581684,1e-08,3651.2,3651.1,14.03854237]
[1753468581832,1e-08,3651.2,3651.1,14.72534237]
[1753468582033,1e-08,3651.6,3651.5,6.51940057]
[1753468582343,1e-08,3651.6,3651.5,11.97020947]
[1753468582654,1e-08,3651.6,3651.5,13.03880947]
[1753468586938,1e-08,3651.6,3651.5,8.81380947]
[1753468587138,1e-08,3651.9,3651.8,3.56717559]
[1753468587362,1e-08,3651.9,3651.8,10.81955934]
[1753468587560,1e-08,3651.9,3651.8,11.06987521]
[1753468587844,1e-08,3651.9,3651.8,12.00167521]
[1753468588464,1e-08,3651.9,3651.8,12.55167521]
[1753468588675,1e-08,3652.3,3651.8,12.55167521]
[1753468588862,1e-08,3652.3,3652.2,15.63044217]
[1753468589062,1e-08,3652.5,3652.4,2.73792574]
[1753468589299,1e-08,3652.5,3652.4,7.76912574]
[1753468589484,1e-08,3652.5,3652.4,8.70092574]
[1753468589881,1e-08,3652.5,3652.4,11.70092574]
[1753468596796,1e-08,3652.5,3652.4,12.25092574]
[1753468597011,1e-08,3652.5,3652.4,14.61196751]
[1753468597207,1e-08,3652.5,3652.4,14.74876751]
[1753468601891,1e-08,3652.5,3652.4,10.52476751]
[1753468602097,1e-08,3652.5,3652.4,14.74676751]
[1753468603216,1e-08,3652.5,3652.4,15.33781252]
[1753468603415,0.95100001,3652.5,3652.4,13.26496751]
[1753468604036,0.46040001,3652.5,3652.4,13.26496751]
[1753468604637,0.46040001,3652.5,3652.4,13.26596751]
[1753468604638,1e-08,3652.5,3652.4,13.26596751]
[1753468604933,0.46040001,3652.5,3652.4,13.26596751]
[1753468605133,0.95100001,3652.5,3652.4,13.26596751]
[1753468606039,0.95100001,3652.5,3652.4,7.09772574]
[1753468607141,0.46040001,3652.5,3652.4,7.09772574]
[1753468607655,0.95100001,3652.5,3652.4,7.09772574]
[1753468608142,1.21900001,3652.5,3652.4,0.001]
[1753468608319,1.70960001,3652.5,3652.4,0.001]
[1753468608827,4.89218472,3652.5,3652.4,0.001]
[1753468611461,5.44218472,3652.5,3652.4,0.001]
[1753468611626,10.08818472,3652.5,3652.4,0.001]
[1753468611829,10.08818472,3652.5,3652.4,1e-08]
[1753468611830,19.15557517,3652.5,3652.4,1e-08]
[1753468612015,19.15557517,3652.5,3651.6,0.001]
[1753468612016,6.34765058,3651.7,3651.6,0.001]
[1753468612210,11.47825169,3651.7,3651.6,0.001]
[1753468612445,14.05065169,3651.7,3651.6,0.001]
[1753468615558,12.40465169,3651.7,3651.6,0.001]
[1753468616666,8.18265169,3651.7,3651.6,0.001]
[1753468616959,12.40565169,3651.7,3651.6,0.001]
[1753468621686,8.18265169,3651.7,3651.6,0.001]
[1753468622181,11.35745169,3651.7,3651.6,0.001]
[1753468622383,7.2822,3651.7,3651.6,0.1378]
[1753468623394,3.0,3651.7,3651.6,0.1378]
[1753468623594,3.0,3651.7,3651.6,3.33239552]
[1753468623595,4.223,3651.7,3651.6,3.33239552]
[1753468623887,4.224,3652.0,3651.7,2.73845058]
[1753468624098,4.224,3652.0,3651.9,0.1368]
[1753468624587,4.224,3652.0,3651.9,3.33120061]
[1753468624766,4.224,3652.0,3651.9,0.5929]
[1753468625186,4.224,3652.0,3651.9,3.33120061]
[1753468625555,0.8132,3652.3,3651.9,1.0207]
[1753468625755,4.223,3652.1,3652.0,3.62212562]
[1753468625958,1e-08,3652.5,3652.1,2.73815065]
[1753468625959,4.223,3652.2,3652.1,2.73815065]
[1753468626192,4.223,3652.2,3652.1,3.19425065]
[1753468626896,4.223,3652.2,3652.1,3.62205065]
[1753468627462,1e-08,3652.5,3652.4,2.73792574]
[1753468627660,4.22300001,3652.5,3652.4,2.73792574]
[1753468627886,1e-08,3652.5,3652.4,3.75862574]
[1753468628613,1e-08,3652.5,3652.4,0.1368]
[1753468628824,1.24620001,3652.5,3652.4,0.1368]
[1753468629107,2.11670776,3652.5,3652.4,0.1368]
[1753468629279,4.85455854,3652.5,3652.4,0.1368]
[1753468630877,8.90275854,3652.5,3652.4,0.1368]
[1753468631076,2.73812044,3652.2,3651.6,2.73951552]
[1753468631280,3.1662292,3652.3,3652.1,0.1368]
[1753468631480,6.96107568,3652.2,3652.1,0.1368]
[1753468632023,7.38927568,3652.2,3652.1,0.1368]
[1753468633114,4.6512,3652.2,3652.1,0.1368]
[1753468633332,2.73795053,3652.4,3652.1,0.1368]
[1753468633533,4.223,3652.3,3652.1,0.1368]
[1753468633727,4.223,3652.3,3651.8,2.73836841]
[1753468633728,4.223,3652.3,3651.8,3.19446841]
[1753468633916,6.96106222,3652.3,3652.2,0.1368]
[1753468634254,7.38926222,3652.3,3652.2,0.1368]
[1753468635959,3.81800001,3652.5,3652.2,0.1368]
[1753468636261,4.222,3652.4,3652.2,0.8839]
[1753468636404,3.00000001,3652.5,3651.9,0.027383]
[1753468636405,1e-08,3652.5,3652.4,0.1368]
[1753468636604,4.22200001,3652.5,3652.4,0.4561]
[1753468636911,4.22200001,3652.5,3652.4,0.8839]
[1753468637638,4.22200001,3652.5,3652.4,0.4561]
[1753468638218,1e-08,3652.5,3652.4,0.4561]
[1753468638421,4.22200001,3652.5,3652.4,0.4561]
[1753468639228,6.95985079,3652.5,3652.3,0.1368]
[1753468639750,4.22200001,3652.5,3652.3,0.1368]
[1753468640423,4.22200001,3652.5,3652.3,0.6172]
[1753468640827,4.22200001,3652.5,3652.4,0.4804]
[1753468641454,4.22200001,3652.5,3652.3,0.1368]
[1753468641660,4.22200001,3652.5,3652.3,0.6172]
[1753468643234,4.222,3652.4,3652.3,0.6172]
[1753468643468,1e-08,3652.5,3652.3,0.6172]
[1753468643645,4.222,3652.4,3652.3,0.6172]
[1753468645076,4.222,3652.4,3652.3,1.0617]
[1753468648260,4.222,3652.4,3652.3,0.6172]
[1753468653563,1e-08,3652.5,3652.3,0.6172]
[1753468653771,4.221,3652.4,3652.3,0.5813]
[1753468653968,1e-08,3652.5,3652.3,0.5813]
[1753468654164,4.221,3652.4,3652.3,0.5813]
[1753468654583,4.221,3652.4,3652.3,0.1368]
[1753468655077,4.221,3652.4,3652.3,0.6172]
[1753468655477,1e-08,3652.5,3652.3,0.6172]
[1753468655684,4.22,3652.4,3652.3,0.6172]
[1753468659705,8.60552574,3652.4,3652.3,0.1368]
[1753468659997,9.08852574,3652.4,3652.3,0.1368]
[1753468660402,9.34472261,3652.4,3652.3,0.1368]
[1753468660801,9.08852574,3652.4,3652.3,0.1368]
[1753468661317,14.54076915,3652.4,3652.3,0.1368]
[1753468661483,9.81753241,3651.7,3651.6,0.1378]
[1753468661687,21.06379914,3651.7,3651.6,0.001]
[1753468661884,22.13049914,3651.7,3651.6,0.001]
[1753468662274,4.93452557,3651.6,3651.5,1e-08]
[1753468662480,10.05320272,3651.6,3651.5,1e-08]
[1753468662703,8.71367562,3651.0,3650.9,0.001]
[1753468662879,21.13609748,3651.0,3650.9,0.001]
[1753468663218,15.76561565,3651.0,3650.9,0.001]
[1753468663573,11.33570893,3651.0,3650.9,0.001]
[1753468663798,15.00883178,3651.0,3650.9,0.001]
[1753468664318,14.52583178,3651.0,3650.9,0.001]
[1753468665479,12.87983178,3651.0,3650.9,0.001]
[1753468665955,4.92395616,3651.0,3650.9,0.001]
[1753468666104,1.2187,3651.3,3650.9,0.001]
[1753468666414,3.0,3651.1,3650.9,0.4814]
[1753468666718,4.22,3651.0,3650.9,0.001]
[1753468668684,4.22,3651.0,3650.9,0.4814]
[1753468668879,4.22,3651.0,3650.9,0.001]
[1753468670186,4.22,3651.0,3650.9,0.4869]
[1753468671024,0.7718,3651.3,3650.9,0.4869]
[1753468671227,4.22,3651.2,3650.9,0.4869]
[1753468671412,17.84183462,3651.0,3650.9,0.001]
[1753468671605,22.06183462,3651.0,3650.9,0.001]
[1753468672031,22.95823462,3651.0,3650.9,0.001]
[1753468672237,25.65732638,3651.0,3650.9,0.001]
[1753468675622,25.79412638,3651.0,3650.9,0.001]
[1753468680644,16.70916738,3651.0,3650.9,0.001]
[1753468685150,23.01867333,3651.0,3650.9,0.001]
[1753468686162,23.27393567,3651.0,3650.9,0.001]
[1753468686365,23.27394915,3651.0,3650.9,0.001]
[1753468686879,22.37754915,3651.0,3650.9,0.001]
[1753468687386,22.80854915,3651.0,3650.9,0.001]
[1753468687745,22.37754915,3651.0,3650.9,0.001]
[1753468689054,22.80854915,3651.0,3650.9,0.001]
[1753468689256,22.96207018,3651.0,3650.9,0.001]
[1753468690172,22.9630035,3651.0,3650.9,0.001]
[1753468696515,22.70692214,3651.0,3650.9,0.001]
[1753468697789,23.17232214,3651.0,3650.9,0.001]
[1753468698316,18.05492214,3651.0,3650.9,0.001]
[1753468698608,23.17132214,3651.0,3650.9,0.001]
[1753468699214,30.23159349,3651.0,3650.9,0.001]
[1753468701926,25.11533024,3651.0,3650.9,0.001]
[1753468702113,29.33533024,3651.0,3650.9,0.001]
[1753468708328,29.80353024,3651.0,3650.9,0.001]
[1753468708534,7.93535077,3650.5,3650.4,0.001]
[1753468708744,18.61791363,3650.5,3650.4,0.001]
[1753468708945,18.75471363,3650.5,3650.4,0.001]
[1753468709346,12.44520768,3650.5,3650.4,0.922]
[1753468709543,8.22620768,3650.5,3650.4,0.922]
[1753468709861,12.30840768,3650.5,3650.4,0.922]
[1753468714470,13.72859726,3650.5,3650.4,0.001]
[1753468714675,14.19679726,3650.5,3650.4,0.001]
[1753468715190,13.72859726,3650.5,3650.4,0.001]
[1753468717370,9.50959726,3650.5,3650.4,0.001]
[1753468717699,13.72759726,3650.5,3650.4,0.001]
[1753468722900,12.30640768,3650.5,3650.4,0.922]
[1753468723103,0.15404056,3650.5,3650.4,3.66142581]
[1753468723315,4.217,3650.5,3650.4,4.60082581]
[1753468723514,4.37104056,3650.5,3650.4,5.33495991]
[1753468723735,3.55,3650.9,3650.5,0.8026]
[1753468723906,0.15403451,3650.9,3650.6,0.8026]
[1753468724100,4.217,3650.8,3650.7,0.8026]
[1753468724411,4.37103451,3650.8,3650.7,1.7236]
[1753468724614,4.37103451,3650.8,3650.7,1.8604]
[1753468726411,4.37096525,3650.8,3650.7,1.8604]
[1753468726614,4.62757365,3650.8,3650.7,1.8604]
[1753468727225,0.41057365,3650.8,3650.7,1.8604]
[1753468727418,4.216,3650.8,3650.7,1.8604]
[1753468727592,4.4726084,3650.8,3650.7,1.8604]
[1753468728717,1.646,3651.4,3650.7,4.7565407]
[1753468728893,0.41041554,3651.5,3651.1,0.7734]
[1753468729092,4.216,3651.4,3651.3,0.9102]
[1753468729302,7.62641554,3651.4,3651.3,0.9102]
[1753468729491,7.47250971,3651.4,3651.3,0.9102]
[1753468729828,10.36500112,3651.4,3651.3,1.8312]
[1753468730132,10.36500112,3651.4,3650.8,2.73909513]
[1753468730133,2.73905064,3650.9,3650.8,0.4794]
[1753468730300,6.95505064,3650.9,3650.8,0.4794]
[1753468730494,7.21156035,3650.9,3650.8,0.6162]
[1753468730694,7.21156035,3650.9,3650.8,1.0894]
[1753468731195,6.95505064,3650.9,3650.8,1.0894]
[1753468731793,4.216,3650.9,3650.8,1.0894]
[1753468733597,4.216,3650.9,3650.8,1.8501]
[1753468736119,1.646,3650.7,3650.5,0.4794]
[1753468736322,1.646,3650.7,3650.6,0.1368]
[1753468736520,4.215,3650.7,3650.6,0.6162]
[1753468736834,4.215,3650.7,3650.6,1.0894]
[1753468737438,4.215,3650.7,3650.6,0.6162]
[1753468738004,6.9542007,3650.7,3650.6,0.6162]
[1753468738431,4.215,3650.7,3650.6,0.6162]
[1753468739437,6.9542007,3650.7,3650.6,0.6162]
[1753468739643,4.215,3650.7,3650.6,0.6162]
[1753468740357,6.9542007,3650.7,3650.6,0.6162]
[1753468740541,4.215,3650.7,3650.6,0.6162]
[1753468741235,6.9542007,3650.7,3650.6,0.6162]
[1753468742486,8.6002007,3650.7,3650.6,0.1368]
[1753468742675,9.0392007,3650.7,3650.6,0.1368]
[1753468742829,10.45519844,3650.7,3650.6,0.1368]
[1753468743370,10.89419844,3650.7,3650.6,0.1368]
[1753468743572,4.93535077,3650.5,3650.4,0.001]
[1753468743777,15.45885672,3650.5,3650.4,0.001]
[1753468743974,9.14935077,3650.5,3650.4,0.4804]
[1753468744565,11.46833629,3650.5,3650.4,0.001]
[1753468746450,18.4730179,3650.5,3650.4,0.001]
[1753468746650,21.0340179,3650.5,3650.4,0.001]
[1753468746851,21.9352179,3650.5,3650.4,0.001]
[1753468747376,22.8618179,3650.5,3650.4,0.001]
[1753468747684,22.3996179,3650.5,3650.4,0.001]
[1753468747859,22.55335063,3650.5,3650.4,0.001]
[1753468748062,22.3996179,3650.5,3650.4,0.001]
[1753468748259,21.62674773,3650.5,3650.4,0.001]
[1753468748485,22.08894773,3650.5,3650.4,0.001]
[1753468749289,22.08899223,3650.5,3650.4,0.001]
[1753468750176,22.08899469,3650.5,3650.4,0.001]
[1753468750680,21.9352624,3650.5,3650.4,0.001]
[1753468750850,22.08900258,3650.5,3650.4,0.001]
[1753468751481,21.4730624,3650.5,3650.4,0.001]
[1753468751690,22.08900022,3650.5,3650.4,0.001]
[1753468753585,22.08899339,3650.5,3650.4,0.001]
[1753468753825,21.9352624,3650.5,3650.4,0.001]
[1753468753980,21.62679397,3650.5,3650.4,0.001]
[1753468754182,21.62678482,3650.5,3650.4,0.001]
[1753468754385,21.4730624,3650.5,3650.4,0.001]
[1753468755107,21.62677524,3650.5,3650.4,0.001]
[1753468755407,22.08897524,3650.5,3650.4,0.001]
[1753468755889,21.9352624,3650.5,3650.4,0.001]
[1753468756095,22.08895842,3650.5,3650.4,0.001]
[1753468756277,21.9352624,3650.5,3650.4,0.001]
[1753468757777,21.4730624,3650.5,3650.4,0.001]
[1753468758205,21.6098624,3650.5,3650.4,0.001]
[1753468758512,21.6098624,3650.5,3650.4,0.4804]
[1753468758513,21.0340624,3650.5,3650.4,0.4804]
[1753468759524,21.0340624,3650.5,3650.4,0.001]
[1753468759738,21.18772856,3650.5,3650.4,0.001]
[1753468760057,21.63272856,3650.5,3650.4,0.001]
[1753468761628,21.62329127,3650.5,3650.4,0.001]
[1753468762017,18.8592901,3650.5,3650.4,0.001]
[1753468762602,18.8592901,3650.5,3650.4,0.4564]
[1753468762603,18.70563959,3650.5,3650.4,0.4564]
[1753468762939,18.85929962,3650.5,3650.4,0.001]
[1753468763093,19.75539962,3650.5,3650.4,0.001]
[1753468763935,0.55,3649.5,3648.1,0.7714]
[1753468764238,13.09880138,3649.5,3649.4,1e-08]
[1753468764435,14.25110934,3649.5,3649.4,1e-08]
[1753468764731,15.6393094,3649.5,3649.4,1e-08]
[1753468765089,14.24568241,3649.4,3649.3,1e-08]
[1753468765297,14.50189037,3649.4,3649.3,1e-08]
[1753468765497,15.39799037,3649.4,3649.3,1e-08]
[1753468766298,14.69068241,3649.4,3649.3,1e-08]
[1753468766498,20.75668015,3649.4,3649.3,1e-08]
[1753468766694,16.30993798,3649.4,3649.3,1e-08]
[1753468767107,20.93062476,3649.4,3649.3,0.45540001]
[1753468767311,16.71962476,3649.4,3649.3,1e-08]
[1753468767528,20.93062476,3649.4,3649.3,1e-08]
[1753468767829,20.52093798,3649.4,3649.3,1e-08]
[1753468768000,20.93044817,3649.4,3649.3,1e-08]
[1753468768347,14.86419034,3649.4,3649.3,0.45540001]
[1753468768550,0.1431,3649.7,3649.3,1.68260001]
[1753468768711,4.212,3649.6,3649.4,0.9285]
[1753468768894,4.212,3649.6,3649.3,0.75410001]
[1753468769095,7.212,3649.6,3649.5,1.0653]
[1753468771994,2.73964893,3650.2,3649.6,0.7733]
[1753468772252,3.0,3650.1,3649.7,0.9285]
[1753468772535,7.211,3650.1,3649.8,1.7018]
[1753468772830,7.211,3650.1,3650.0,0.1368]
[1753468773138,15.63066592,3650.8,3650.1,0.8027]
[1753468773139,9.32118838,3650.8,3650.1,0.8027]
[1753468773309,9.32118838,3650.8,3650.2,0.9285]
[1753468773310,3.0,3650.6,3650.2,0.9285]
[1753468773513,6.95020314,3650.7,3650.3,0.9285]
[1753468773514,3.0,3650.4,3650.3,0.9285]
[1753468773713,4.211,3650.4,3650.1,0.8027]
[1753468773934,4.211,3650.4,3650.3,0.1368]
[1753468774448,4.211,3650.4,3650.3,1.0653]
[1753468774449,7.211,3650.4,3650.3,1.0653]
[1753468779465,4.211,3650.4,3650.3,1.3867]
[1753468779664,0.002,3650.8,3650.4,0.7945]
[1753468779832,4.21,3650.7,3650.5,2.9253067]
[1753468780255,4.21,3650.7,3650.6,1.0653]
[1753468782288,4.21,3650.7,3650.6,0.5922]
[1753468782484,4.21,3650.7,3650.6,1.0653]
[1753468782786,4.21,3650.7,3650.1,0.7945]
[1753468782787,2.73957591,3650.2,3650.1,0.7945]
[1753468782985,2.73957591,3650.2,3649.8,0.001]
[1753468782986,4.21,3650.2,3649.8,0.001]
[1753468783186,2.73980109,3649.9,3649.8,0.001]
[1753468783387,6.94980109,3649.9,3649.8,0.001]
[1753468783555,6.94980109,3649.9,3649.8,0.1378]
[1753468784158,4.21,3649.9,3649.8,0.1378]
[1753468784583,4.21,3649.9,3649.8,1.8945]
[1753468785403,4.21,3649.9,3649.8,0.966]
[1753468785565,4.21,3649.9,3649.8,0.1378]
[1753468786106,6.94980109,3649.9,3649.8,0.1378]
[1753468786605,17.50020846,3649.9,3649.8,0.001]
[1753468786807,17.95130846,3649.9,3649.8,0.001]
[1753468787420,20.95130846,3649.9,3649.8,0.001]
[1753468788071,28.78610846,3649.9,3649.8,0.001]
[1753468788398,29.04189393,3649.9,3649.8,0.001]
[1753468788895,29.19537203,3649.9,3649.8,0.001]
[1753468792065,2.7400263,3649.6,3649.3,1e-08]
[1753468792275,2.7400263,3649.6,3649.1,0.001]
[1753468792276,2.196,3649.2,3649.1,0.001]
[1753468792476,12.53891211,3649.2,3649.1,0.001]
[1753468792763,13.46551211,3649.2,3649.1,0.001]
[1753468796003,12.97551211,3649.2,3649.1,0.001]
[1753468796909,20.03551211,3649.2,3649.1,0.001]
[1753468797207,22.73460387,3649.2,3649.1,0.001]
[1753468799025,23.22460387,3649.2,3649.1,0.001]
[1753468799612,22.29800387,3649.2,3649.1,0.001]
[1753468800312,17.8322184,3649.2,3649.1,0.001]
[1753468800482,22.0422184,3649.2,3649.1,0.001]
[1753468800682,22.29752042,3649.2,3649.1,0.001]
[1753468800891,22.4788184,3649.2,3649.1,0.001]
[1753468801776,22.0422184,3649.2,3649.1,0.001]
[1753468803777,16.1862184,3649.2,3649.1,0.4794]
[1753468803982,17.69712664,3649.2,3649.1,0.9331]
[1753468804384,17.56032664,3649.2,3649.1,0.9331]
[1753468805313,0.002,3649.9,3649.1,1.6922]
[1753468805617,4.212,3649.9,3649.6,2.74001055]
[1753468805918,4.212,3649.9,3649.7,1.6912]
[1753468806219,4.212,3649.9,3649.8,0.9321]
[1753468806417,0.002,3649.9,3649.8,4.46507615]
[1753468806730,0.002,3649.9,3649.8,4.49247491]
[1753468806880,0.002,3649.9,3649.8,5.2157201]
[1753468809318,0.002,3649.9,3649.8,1.7252]
[1753468810090,0.002,3649.9,3649.8,4.46507615]
[1753468810300,0.002,3649.9,3649.8,4.49247491]
[1753468810922,0.002,3649.9,3649.8,4.46507615]
[1753468815533,0.002,3649.9,3649.8,4.60187615]
[1753468815835,0.002,3649.9,3649.8,5.75970012]
[1753468819542,5.59957775,3651.3,3650.7,0.7567]
[1753468819704,5.59957775,3651.3,3651.2,0.1368]
[1753468820112,6.52367775,3651.3,3651.2,0.1368]
[1753468820633,3.32141843,3651.3,3651.2,0.1368]
[1753468820938,6.06016901,3651.3,3651.2,0.1368]
[1753468821634,2.86081843,3651.3,3651.2,0.1368]
[1753468821840,5.59956901,3651.3,3651.2,0.1368]
[1753468822509,6.06016901,3651.3,3651.2,0.1368]
[1753468824833,6.36406901,3651.3,3651.2,0.1368]
[1753468825014,6.82466901,3651.3,3651.2,0.1368]
[1753468825214,7.28816901,3651.3,3651.2,0.1368]
[1753468826461,5.59956901,3651.3,3651.2,0.1368]
[1753468826758,2.86081843,3651.3,3651.2,0.6169]
[1753468826960,2.86081843,3651.3,3651.2,1.3815]
[1753468827123,2.86081843,3651.3,3651.2,1.83914952]
[1753468827637,6.52366901,3651.3,3651.2,0.1368]
[1753468828957,0.002,3651.4,3651.3,0.8286]
[1753468829248,0.002,3651.4,3651.3,4.50345058]
[1753468829566,0.002,3651.4,3651.3,1.7920875]
[1753468829716,0.002,3651.4,3651.3,1.7647]
[1753468829916,0.002,3651.4,3651.3,5.24137325]
[1753468830340,0.002,3651.4,3651.3,2.50262267]
[1753468830619,0.002,3651.4,3651.3,5.24137325]
[1753468831171,0.002,3651.4,3651.3,2.50262267]
[1753468836923,0.002,3651.4,3651.3,5.24137325]
[1753468837430,0.002,3651.4,3651.3,2.50262267]
[1753468838156,0.002,3651.4,3651.2,0.1368]
[1753468838332,0.002,3651.4,3651.2,0.6169]
[1753468838649,0.002,3651.4,3651.3,0.4801]
[1753468842470,0.002,3651.4,3651.2,0.1368]
[1753468842672,0.4626,3651.4,3651.2,0.1368]
[1753468842874,3.20128537,3651.4,3651.2,0.1368]
[1753468846387,0.4626,3651.4,3651.2,0.1368]
[1753468847266,3.20133169,3651.4,3651.2,0.1368]
[1753468848598,0.4626,3651.4,3651.2,0.1368]
[1753468849082,0.4606,3651.3,3651.2,0.1368]
[1753468849470,0.002,3651.4,3651.2,0.1368]
[1753468849670,0.4626,3651.4,3651.2,0.1368]